[Event "Titled Tuesday Blitz October 31 Late 2023"]
[White "Karttunen, Mika"]
[Black "Musovic, Armin"]
[WhiteFideId "502081"]
[BlackFideId "939935"]
[WhiteElo "2583"]
[BlackElo "2469"]
[Result "0-1"]
[Round "10"]
[TimeControl "180+1"]
[Date "2023.10.31"]
[WhiteClock "0:00:00"]
[BlackClock "0:00:56"]
[Board "54"]

1. e4 {[%clk 0:03:00]}  c6 {[%clk 0:02:54]} 2. d4 {[%clk 0:02:59]}  d5 {[%clk 0:02:55]} 3. e5 {[%clk 0:02:59]}  c5 {[%clk 0:02:55]} 4. Nf3 {[%clk 0:02:58]}  Nc6 {[%clk 0:02:54]} 5. Bb5 {[%clk 0:02:57]}  Bg4 {[%clk 0:02:54]} 6. dxc5 {[%clk 0:02:57]}  Qa5+ {[%clk 0:02:52]} 7. Nc3 {[%clk 0:02:56]}  e6 {[%clk 0:02:53]} 8. Bd2 {[%clk 0:02:43]}  Qc7 {[%clk 0:02:50]} 9. b4 {[%clk 0:02:15]}  Ne7 {[%clk 0:02:45]} 10. O-O {[%clk 0:01:59]}  a6 {[%clk 0:02:41]} 11. Ba4 {[%clk 0:01:53]}  Ng6 {[%clk 0:02:35]} 12. h3 {[%clk 0:01:51]}  Bxf3 {[%clk 0:02:34]} 13. Qxf3 {[%clk 0:01:51]}  Be7 {[%clk 0:02:33]} 14. Rae1 {[%clk 0:01:38]}  O-O {[%clk 0:02:31]} 15. Bxc6 {[%clk 0:01:38]}  bxc6 {[%clk 0:02:31]} 16. Qe3 {[%clk 0:01:31]}  a5 {[%clk 0:02:20]} 17. a3 {[%clk 0:01:29]}  axb4 {[%clk 0:02:20]} 18. axb4 {[%clk 0:01:30]}  Ra3 {[%clk 0:02:21]} 19. Nxd5 {[%clk 0:01:15]}  Rxe3 {[%clk 0:02:15]} 20. Nxc7 {[%clk 0:01:14]}  Rxe5 {[%clk 0:02:15]} 21. c4 {[%clk 0:00:47]}  Rc8 {[%clk 0:02:11]} 22. Na6 {[%clk 0:00:44]}  Ra8 {[%clk 0:02:07]} 23. Ra1 {[%clk 0:00:44]}  Re2 {[%clk 0:02:04]} 24. Be3 {[%clk 0:00:41]}  Bf6 {[%clk 0:02:03]} 25. Ra4 {[%clk 0:00:37]}  Rb2 {[%clk 0:01:59]} 26. Rc1 {[%clk 0:00:31]}  h6 {[%clk 0:01:51]} 27. b5 {[%clk 0:00:25]}  cxb5 {[%clk 0:01:46]} 28. cxb5 {[%clk 0:00:25]}  Rxb5 {[%clk 0:01:47]} 29. c6 {[%clk 0:00:25]}  Be5 {[%clk 0:01:38]} 30. c7 {[%clk 0:00:25]}  Rc8 {[%clk 0:01:38]} 31. Rac4 {[%clk 0:00:24]}  Ne7 {[%clk 0:01:33]} 32. f4 {[%clk 0:00:22]}  Bd6 {[%clk 0:01:26]} 33. Bc5 {[%clk 0:00:22]}  Bxc5+ {[%clk 0:01:11]} 34. Rxc5 {[%clk 0:00:22]}  Rb6 {[%clk 0:01:11]} 35. Nb8 {[%clk 0:00:21]}  Nd5 {[%clk 0:01:07]} 36. Nd7 {[%clk 0:00:18]}  Rb7 {[%clk 0:01:07]} 37. f5 {[%clk 0:00:16]}  Rbxc7 {[%clk 0:01:05]} 38. Rxc7 {[%clk 0:00:16]}  Rxc7 {[%clk 0:01:06]} 39. Rxc7 {[%clk 0:00:15]}  Nxc7 {[%clk 0:01:07]} 40. f6 {[%clk 0:00:15]}  Nd5 {[%clk 0:01:06]} 41. fxg7 {[%clk 0:00:15]}  Kxg7 {[%clk 0:01:07]} 42. Kf1 {[%clk 0:00:16]}  f6 {[%clk 0:01:08]} 43. Kf2 {[%clk 0:00:16]}  e5 {[%clk 0:01:08]} 44. Nc5 {[%clk 0:00:16]}  Kf7 {[%clk 0:01:08]} 45. g4 {[%clk 0:00:17]}  Nf4 {[%clk 0:01:07]} 46. h4 {[%clk 0:00:17]}  Ne6 {[%clk 0:01:06]} 47. Ne4 {[%clk 0:00:17]}  Ng7 {[%clk 0:01:05]} 48. Kg3 {[%clk 0:00:16]}  Ke6 {[%clk 0:01:05]} 49. h5 {[%clk 0:00:15]}  f5 {[%clk 0:01:03]} 50. gxf5+ {[%clk 0:00:15]}  Kxf5 {[%clk 0:01:04]} 51. Nd6+ {[%clk 0:00:15]}  Ke6 {[%clk 0:01:03]} 52. Ne4 {[%clk 0:00:14]}  Nxh5+ {[%clk 0:01:04]} 53. Kh4 {[%clk 0:00:14]}  Nf6 {[%clk 0:01:04]} 54. Ng3 {[%clk 0:00:14]}  e4 {[%clk 0:01:04]} 55. Ne2 {[%clk 0:00:13]}  Kf5 {[%clk 0:01:04]} 56. Kg3 {[%clk 0:00:13]}  Kg5 {[%clk 0:01:04]} 57. Nd4 {[%clk 0:00:14]}  h5 {[%clk 0:01:05]} 58. Ne6+ {[%clk 0:00:14]}  Kf5 {[%clk 0:01:05]} 59. Ng7+ {[%clk 0:00:14]}  Ke5 {[%clk 0:01:06]} 60. Kf2 {[%clk 0:00:14]}  Kf4 {[%clk 0:01:05]} 61. Ne6+ {[%clk 0:00:14]}  Kg4 {[%clk 0:01:06]} 62. Nd4 {[%clk 0:00:14]}  h4 {[%clk 0:01:06]} 63. Ne2 {[%clk 0:00:14]}  Nd5 {[%clk 0:01:05]} 64. Nd4 {[%clk 0:00:13]}  h3 {[%clk 0:01:05]} 65. Kg1 {[%clk 0:00:12]}  e3 {[%clk 0:01:01]} 66. Kh2 {[%clk 0:00:11]}  Nf4 {[%clk 0:01:01]} 67. Kg1 {[%clk 0:00:09]}  Kg3 {[%clk 0:00:56]} 68. Nf5+ {[%clk 0:00:10]}  Kf3 {[%clk 0:00:57]} 69. Nd4+ {[%clk 0:00:10]}  Ke4 {[%clk 0:00:57]} 70. Nc2 {[%clk 0:00:10]}  e2 {[%clk 0:00:56]} 71. Kh2 {[%clk 0:00:09]}  Kf3 {[%clk 0:00:53]} 72. Kg1 {[%clk 0:00:07]}  Kg3 {[%clk 0:00:53]} 73. Ne1 {[%clk 0:00:04]}  h2+ {[%clk 0:00:53]} 74. Kh1 {[%clk 0:00:04]}  Nh3 {[%clk 0:00:54]} 75. Nd3 {[%clk 0:00:03]}  Nf2+ {[%clk 0:00:54]} 76. Nxf2 {[%clk 0:00:03]}  Kxf2 {[%clk 0:00:55]} 77. Kxh2 {[%clk 0:00:00]}  e1=Q {[%clk 0:00:56]} 0-1


[Site "https://www.chess.com"]

[Event "Titled Tuesday Blitz October 31 Late 2023"]
[White "Rakitic2010"]
[Black "Colbow, Collin"]
[BlackFideId "16201132"]
[WhiteElo "2463"]
[BlackElo "2572"]
[Result "1-0"]
[Round "10"]
[TimeControl "180+1"]
[Date "2023.10.31"]
[WhiteClock "0:00:47"]
[BlackClock "0:00:05"]
[Board "56"]

1. e4 {[%clk 0:03:00]}  g6 {[%clk 0:02:50]} 2. h4 {[%clk 0:02:59]}  Bg7 {[%clk 0:02:51]} 3. h5 {[%clk 0:02:59]}  a6 {[%clk 0:02:50]} 4. d4 {[%clk 0:02:59]}  d6 {[%clk 0:02:49]} 5. Nc3 {[%clk 0:02:58]}  b5 {[%clk 0:02:48]} 6. h6 {[%clk 0:02:56]}  Bf8 {[%clk 0:02:48]} 7. Nf3 {[%clk 0:02:56]}  Bb7 {[%clk 0:02:48]} 8. d5 {[%clk 0:02:56]}  c5 {[%clk 0:02:43]} 9. e5 {[%clk 0:02:53]}  b4 {[%clk 0:02:27]} 10. Nb5 {[%clk 0:02:47]}  dxe5 {[%clk 0:02:15]} 11. Nxe5 {[%clk 0:02:42]}  Nd7 {[%clk 0:02:08]} 12. Bf4 {[%clk 0:02:11]}  axb5 {[%clk 0:01:52]} 13. Bxb5 {[%clk 0:02:10]}  Nf6 {[%clk 0:01:52]} 14. Bg5 {[%clk 0:02:01]}  Bc8 {[%clk 0:01:35]} 15. Qe2 {[%clk 0:02:00]}  Nxd5 {[%clk 0:01:14]} 16. O-O-O {[%clk 0:01:54]}  Rxa2 {[%clk 0:00:38]} 17. Rxd5 {[%clk 0:01:41]}  Ra1+ {[%clk 0:00:19]} 18. Kd2 {[%clk 0:01:40]}  Rxh1 {[%clk 0:00:20]} 19. Nxd7 {[%clk 0:01:18]}  Bxd7 {[%clk 0:00:21]} 20. Qd3 {[%clk 0:01:09]}  c4 {[%clk 0:00:07]} 21. Rxd7 {[%clk 0:01:03]}  cxd3 {[%clk 0:00:05]} 22. Rxe7# {[%clk 0:00:47]} 1-0


[Site "https://www.chess.com"]

[Event "Titled Tuesday Blitz October 31 Late 2023"]
[White "Shapiro, Viktor"]
[Black "Belenkaya, Dina"]
[WhiteFideId "4175700"]
[BlackFideId "24142654"]
[WhiteElo "2560"]
[BlackElo "2453"]
[Result "1-0"]
[Round "10"]
[TimeControl "180+1"]
[Date "2023.10.31"]
[WhiteClock "0:00:33"]
[BlackClock "0:00:04"]
[Board "57"]

1. c4 {[%clk 0:03:00]}  e5 {[%clk 0:02:59]} 2. Nc3 {[%clk 0:03:01]}  Nc6 {[%clk 0:02:55]} 3. g3 {[%clk 0:03:01]}  Nf6 {[%clk 0:02:55]} 4. Bg2 {[%clk 0:03:01]}  Bc5 {[%clk 0:02:51]} 5. e3 {[%clk 0:03:01]}  a6 {[%clk 0:02:50]} 6. Nge2 {[%clk 0:03:01]}  d6 {[%clk 0:02:49]} 7. d4 {[%clk 0:03:01]}  exd4 {[%clk 0:02:49]} 8. exd4 {[%clk 0:03:02]}  Ba7 {[%clk 0:02:49]} 9. h3 {[%clk 0:03:02]}  O-O {[%clk 0:02:47]} 10. O-O {[%clk 0:03:02]}  Re8 {[%clk 0:02:47]} 11. Be3 {[%clk 0:03:02]}  Bf5 {[%clk 0:02:43]} 12. g4 {[%clk 0:03:02]}  Bg6 {[%clk 0:02:41]} 13. Ng3 {[%clk 0:03:03]}  h6 {[%clk 0:02:38]} 14. Qd2 {[%clk 0:03:02]}  Qd7 {[%clk 0:02:26]} 15. Rac1 {[%clk 0:02:54]}  Re7 {[%clk 0:02:21]} 16. Rfe1 {[%clk 0:02:44]}  Rae8 {[%clk 0:02:20]} 17. b3 {[%clk 0:02:39]}  Nh7 {[%clk 0:01:59]} 18. Nce2 {[%clk 0:02:34]}  Nd8 {[%clk 0:01:54]} 19. Nf4 {[%clk 0:02:32]}  c6 {[%clk 0:01:34]} 20. Nxg6 {[%clk 0:02:31]}  fxg6 {[%clk 0:01:35]} 21. Qd3 {[%clk 0:02:29]}  Nf8 {[%clk 0:01:28]} 22. Re2 {[%clk 0:02:15]}  Nde6 {[%clk 0:01:23]} 23. Rce1 {[%clk 0:02:15]}  d5 {[%clk 0:01:16]} 24. cxd5 {[%clk 0:02:11]}  cxd5 {[%clk 0:01:17]} 25. b4 {[%clk 0:01:58]}  Kh8 {[%clk 0:01:16]} 26. Rc1 {[%clk 0:01:54]}  Bb8 {[%clk 0:01:13]} 27. Nf1 {[%clk 0:01:49]}  Nf4 {[%clk 0:01:01]} 28. Bxf4 {[%clk 0:01:49]}  Bxf4 {[%clk 0:00:51]} 29. Rxe7 {[%clk 0:01:48]}  Qxe7 {[%clk 0:00:43]} 30. Rc5 {[%clk 0:01:46]}  Bd6 {[%clk 0:00:42]} 31. Rxd5 {[%clk 0:01:43]}  Bxb4 {[%clk 0:00:42]} 32. Ne3 {[%clk 0:01:43]}  Bd6 {[%clk 0:00:40]} 33. a4 {[%clk 0:01:34]}  Qf6 {[%clk 0:00:38]} 34. Qb3 {[%clk 0:01:28]}  Qf4 {[%clk 0:00:26]} 35. Kf1 {[%clk 0:00:44]}  Kh7 {[%clk 0:00:16]} 36. h4 {[%clk 0:00:38]}  Ne6 {[%clk 0:00:13]} 37. h5 {[%clk 0:00:36]}  Nxd4 {[%clk 0:00:12]} 38. Qd3 {[%clk 0:00:34]}  Be5 {[%clk 0:00:06]} 39. Qxg6+ {[%clk 0:00:32]}  Kg8 {[%clk 0:00:06]} 40. Qxe8+ {[%clk 0:00:32]}  Qf8 {[%clk 0:00:06]} 41. Qxf8+ {[%clk 0:00:32]}  Kxf8 {[%clk 0:00:04]} 42. Rxe5 {[%clk 0:00:33]} 1-0


[Site "https://www.chess.com"]

[Event "Titled Tuesday Blitz October 31 Late 2023"]
[White "Abduzhaparov"]
[Black "Sargsyan, Anna M."]
[BlackFideId "13308130"]
[WhiteElo "2448"]
[BlackElo "2543"]
[Result "1-0"]
[Round "10"]
[TimeControl "180+1"]
[Date "2023.10.31"]
[WhiteClock "0:01:00"]
[BlackClock "0:00:08"]
[Board "59"]

1. Nf3 {[%clk 0:03:00]}  d5 {[%clk 0:02:59]} 2. c4 {[%clk 0:03:01]}  d4 {[%clk 0:02:59]} 3. e3 {[%clk 0:03:01]}  Nc6 {[%clk 0:02:58]} 4. b4 {[%clk 0:03:02]}  dxe3 {[%clk 0:02:54]} 5. fxe3 {[%clk 0:03:02]}  Nxb4 {[%clk 0:02:51]} 6. d4 {[%clk 0:03:03]}  c5 {[%clk 0:02:51]} 7. a3 {[%clk 0:02:58]}  Na6 {[%clk 0:02:50]} 8. d5 {[%clk 0:02:55]}  e6 {[%clk 0:02:50]} 9. Nc3 {[%clk 0:02:54]}  exd5 {[%clk 0:02:46]} 10. cxd5 {[%clk 0:02:52]}  Nf6 {[%clk 0:02:46]} 11. e4 {[%clk 0:02:45]}  Nd7 {[%clk 0:02:29]} 12. e5 {[%clk 0:02:40]}  f6 {[%clk 0:02:12]} 13. e6 {[%clk 0:02:35]}  Nb6 {[%clk 0:02:06]} 14. Bb5+ {[%clk 0:02:30]}  Ke7 {[%clk 0:02:06]} 15. Bf4 {[%clk 0:02:15]}  Bxe6 {[%clk 0:01:19]} 16. dxe6 {[%clk 0:02:14]}  Qxd1+ {[%clk 0:01:18]} 17. Rxd1 {[%clk 0:02:14]}  Kxe6 {[%clk 0:01:19]} 18. O-O {[%clk 0:02:12]}  Kf7 {[%clk 0:01:14]} 19. Bg3 {[%clk 0:01:54]}  Be7 {[%clk 0:01:11]} 20. Ng5+ {[%clk 0:01:49]}  Kg6 {[%clk 0:01:09]} 21. Bd3+ {[%clk 0:01:19]}  Kxg5 {[%clk 0:01:09]} 22. h4+ {[%clk 0:01:19]}  Kh6 {[%clk 0:01:03]} 23. Rde1 {[%clk 0:01:13]}  c4 {[%clk 0:00:37]} 24. Bf4+ {[%clk 0:01:04]}  g5 {[%clk 0:00:36]} 25. hxg5+ {[%clk 0:01:04]}  fxg5 {[%clk 0:00:37]} 26. Re6+ {[%clk 0:01:04]}  Kh5 {[%clk 0:00:10]} 27. Be2+ {[%clk 0:01:03]}  Kh4 {[%clk 0:00:08]} 28. Rh6# {[%clk 0:01:00]} 1-0


[Site "https://www.chess.com"]

[Event "Titled Tuesday Blitz October 31 Late 2023"]
[White "Florianovitz, Derlei Alex"]
[Black "Estrada Nieto, Julian"]
[WhiteFideId "2114178"]
[BlackFideId "5101018"]
[WhiteElo "2292"]
[BlackElo "2499"]
[Result "0-1"]
[Round "10"]
[TimeControl "180+1"]
[Date "2023.10.31"]
[WhiteClock "0:00:00"]
[BlackClock "0:00:12"]
[Board "63"]

1. e4 {[%clk 0:03:00]}  e5 {[%clk 0:02:59]} 2. Nf3 {[%clk 0:03:00]}  Nc6 {[%clk 0:02:59]} 3. Bb5 {[%clk 0:03:01]}  a6 {[%clk 0:03:00]} 4. Ba4 {[%clk 0:03:00]}  Nf6 {[%clk 0:03:00]} 5. O-O {[%clk 0:03:00]}  Be7 {[%clk 0:03:00]} 6. Re1 {[%clk 0:03:00]}  b5 {[%clk 0:03:00]} 7. Bb3 {[%clk 0:03:00]}  d6 {[%clk 0:03:01]} 8. c3 {[%clk 0:03:00]}  O-O {[%clk 0:03:01]} 9. h3 {[%clk 0:03:00]}  Bb7 {[%clk 0:03:01]} 10. d4 {[%clk 0:02:59]}  Re8 {[%clk 0:03:00]} 11. Ng5 {[%clk 0:02:58]}  Rf8 {[%clk 0:03:00]} 12. Nf3 {[%clk 0:02:58]}  h6 {[%clk 0:02:58]} 13. Nbd2 {[%clk 0:02:54]}  Re8 {[%clk 0:02:58]} 14. d5 {[%clk 0:02:53]}  Nb8 {[%clk 0:02:57]} 15. Nf1 {[%clk 0:02:52]}  c6 {[%clk 0:02:56]} 16. dxc6 {[%clk 0:02:51]}  Bxc6 {[%clk 0:02:56]} 17. Ng3 {[%clk 0:02:49]}  Bf8 {[%clk 0:02:56]} 18. Nf5 {[%clk 0:02:48]}  a5 {[%clk 0:02:06]} 19. Bc2 {[%clk 0:02:45]}  Kh7 {[%clk 0:01:44]} 20. g4 {[%clk 0:02:37]}  g6 {[%clk 0:01:43]} 21. Ng3 {[%clk 0:02:37]}  Nbd7 {[%clk 0:01:41]} 22. Kg2 {[%clk 0:02:32]}  Nc5 {[%clk 0:01:40]} 23. g5 {[%clk 0:02:10]}  Ng8 {[%clk 0:01:21]} 24. gxh6 {[%clk 0:02:05]}  Bxh6 {[%clk 0:01:20]} 25. Bxh6 {[%clk 0:02:02]}  Nxh6 {[%clk 0:01:20]} 26. Qd2 {[%clk 0:01:39]}  Ne6 {[%clk 0:01:18]} 27. Rad1 {[%clk 0:01:13]}  Nf4+ {[%clk 0:01:18]} 28. Kh2 {[%clk 0:01:13]}  Re6 {[%clk 0:01:08]} 29. Ne2 {[%clk 0:01:05]}  Rf6 {[%clk 0:01:00]} 30. Nxe5 {[%clk 0:00:37]}  Nxe2 {[%clk 0:00:42]} 31. Qxe2 {[%clk 0:00:08]}  Qc8 {[%clk 0:00:20]} 32. Nxc6 {[%clk 0:00:08]}  Qxc6 {[%clk 0:00:20]} 33. Rd5 {[%clk 0:00:04]}  Qb6 {[%clk 0:00:16]} 34. Kg2 {[%clk 0:00:03]}  b4 {[%clk 0:00:14]} 35. c4 {[%clk 0:00:03]}  Re8 {[%clk 0:00:13]} 36. b3 {[%clk 0:00:02]}  Re5 {[%clk 0:00:13]} 37. Rxe5 {[%clk 0:00:02]}  dxe5 {[%clk 0:00:13]} 38. Rd1 {[%clk 0:00:02]}  Rf4 {[%clk 0:00:13]} 39. Rd5 {[%clk 0:00:02]}  Qf6 {[%clk 0:00:12]} 40. c5 {[%clk 0:00:01]}  Qg5+ {[%clk 0:00:12]} 41. Kf1 {[%clk 0:00:00]}  Qh4 {[%clk 0:00:12]} 0-1


[Site "https://www.chess.com"]

[Event "Titled Tuesday Blitz October 31 Late 2023"]
[White "Olsen, Filip Boe"]
[Black "Devagharan, Devina"]
[WhiteFideId "1440640"]
[BlackFideId "2061600"]
[WhiteElo "2628"]
[BlackElo "2433"]
[Result "1/2-1/2"]
[Round "10"]
[TimeControl "180+1"]
[Date "2023.10.31"]
[WhiteClock "0:00:31"]
[BlackClock "0:00:06"]
[Board "67"]

1. e4 {[%clk 0:02:59]}  c5 {[%clk 0:02:53]} 2. e5 {[%clk 0:02:59]}  d5 {[%clk 0:02:49]} 3. c3 {[%clk 0:02:52]}  Nc6 {[%clk 0:02:44]} 4. Nf3 {[%clk 0:02:52]}  Bf5 {[%clk 0:02:40]} 5. Bb5 {[%clk 0:02:49]}  e6 {[%clk 0:02:39]} 6. O-O {[%clk 0:02:48]}  Ne7 {[%clk 0:02:28]} 7. d4 {[%clk 0:02:46]}  a6 {[%clk 0:02:28]} 8. Bd3 {[%clk 0:02:43]}  Bxd3 {[%clk 0:02:26]} 9. Qxd3 {[%clk 0:02:44]}  Nf5 {[%clk 0:02:26]} 10. Nbd2 {[%clk 0:02:31]}  Be7 {[%clk 0:02:26]} 11. g4 {[%clk 0:02:21]}  Nh4 {[%clk 0:02:09]} 12. Nxh4 {[%clk 0:02:20]}  Bxh4 {[%clk 0:02:08]} 13. f4 {[%clk 0:02:21]}  Be7 {[%clk 0:01:41]} 14. Nf3 {[%clk 0:02:14]}  h5 {[%clk 0:01:37]} 15. h3 {[%clk 0:02:04]}  hxg4 {[%clk 0:01:34]} 16. hxg4 {[%clk 0:02:05]}  g6 {[%clk 0:01:34]} 17. Be3 {[%clk 0:02:00]}  b6 {[%clk 0:01:23]} 18. Kg2 {[%clk 0:01:58]}  c4 {[%clk 0:01:12]} 19. Qc2 {[%clk 0:01:57]}  Qc7 {[%clk 0:01:12]} 20. Rh1 {[%clk 0:01:51]}  O-O-O {[%clk 0:01:11]} 21. Rxh8 {[%clk 0:01:50]}  Rxh8 {[%clk 0:01:12]} 22. Rh1 {[%clk 0:01:49]}  Qd8 {[%clk 0:01:09]} 23. Rxh8 {[%clk 0:01:39]}  Qxh8 {[%clk 0:01:10]} 24. f5 {[%clk 0:01:36]}  gxf5 {[%clk 0:01:09]} 25. gxf5 {[%clk 0:01:36]}  Qh7 {[%clk 0:00:56]} 26. Qa4 {[%clk 0:01:22]}  Kb7 {[%clk 0:00:55]} 27. f6 {[%clk 0:01:20]}  Bf8 {[%clk 0:00:53]} 28. Qd1 {[%clk 0:01:18]}  Bh6 {[%clk 0:00:39]} 29. Bxh6 {[%clk 0:01:12]}  Qxh6 {[%clk 0:00:39]} 30. Qd2 {[%clk 0:01:13]}  Qg6+ {[%clk 0:00:26]} 31. Qg5 {[%clk 0:01:12]}  Qc2+ {[%clk 0:00:26]} 32. Qd2 {[%clk 0:01:13]}  Qg6+ {[%clk 0:00:26]} 33. Kf2 {[%clk 0:01:13]}  b5 {[%clk 0:00:20]} 34. Ne1 {[%clk 0:01:04]}  Qg4 {[%clk 0:00:16]} 35. Qe2 {[%clk 0:01:02]}  Qf4+ {[%clk 0:00:16]} 36. Qf3 {[%clk 0:00:59]}  Qd2+ {[%clk 0:00:16]} 37. Qe2 {[%clk 0:00:59]}  Qf4+ {[%clk 0:00:17]} 38. Nf3 {[%clk 0:01:00]}  b4 {[%clk 0:00:16]} 39. Qe3 {[%clk 0:01:00]}  Qg4 {[%clk 0:00:14]} 40. Qd2 {[%clk 0:00:54]}  a5 {[%clk 0:00:14]} 41. a3 {[%clk 0:00:54]}  bxc3 {[%clk 0:00:11]} 42. bxc3 {[%clk 0:00:52]}  Qh3 {[%clk 0:00:11]} 43. Ng5 {[%clk 0:00:51]}  Qh2+ {[%clk 0:00:09]} 44. Ke1 {[%clk 0:00:51]}  Qg1+ {[%clk 0:00:08]} 45. Ke2 {[%clk 0:00:51]}  Qg2+ {[%clk 0:00:09]} 46. Kd1 {[%clk 0:00:52]}  Qf1+ {[%clk 0:00:07]} 47. Kc2 {[%clk 0:00:51]}  Qf5+ {[%clk 0:00:08]} 48. Kc1 {[%clk 0:00:51]}  Qg6 {[%clk 0:00:06]} 49. Nf3 {[%clk 0:00:48]}  a4 {[%clk 0:00:06]} 50. Qc2 {[%clk 0:00:46]}  Qh6+ {[%clk 0:00:04]} 51. Kb2 {[%clk 0:00:45]}  Na5 {[%clk 0:00:04]} 52. Qxa4 {[%clk 0:00:34]}  Nb3 {[%clk 0:00:05]} 53. Qb5+ {[%clk 0:00:34]}  Ka7 {[%clk 0:00:04]} 54. Qd7+ {[%clk 0:00:33]}  Kb6 {[%clk 0:00:05]} 55. Qd6+ {[%clk 0:00:31]}  Kb7 {[%clk 0:00:04]} 56. Qd7+ {[%clk 0:00:31]}  Kb6 {[%clk 0:00:05]} 57. Qd6+ {[%clk 0:00:31]}  Kb7 {[%clk 0:00:05]} 58. Qd7+ {[%clk 0:00:31]}  Kb6 {[%clk 0:00:06]} 1/2-1/2


[Site "https://www.chess.com"]

[Event "Titled Tuesday Blitz October 31 Late 2023"]
[White "Curtis, John"]
[Black "Jovic, Stanoje"]
[WhiteFideId "3200256"]
[BlackFideId "905020"]
[WhiteElo "2188"]
[BlackElo "2435"]
[Result "0-1"]
[Round "10"]
[TimeControl "180+1"]
[Date "2023.10.31"]
[WhiteClock "0:00:35"]
[BlackClock "0:00:16"]
[Board "78"]

1. d4 {[%clk 0:03:00]}  Nf6 {[%clk 0:02:59]} 2. c4 {[%clk 0:02:59]}  e6 {[%clk 0:02:58]} 3. Nf3 {[%clk 0:02:58]}  d5 {[%clk 0:02:57]} 4. Nc3 {[%clk 0:02:57]}  Bb4 {[%clk 0:02:56]} 5. Qa4+ {[%clk 0:02:57]}  Nc6 {[%clk 0:02:55]} 6. cxd5 {[%clk 0:02:57]}  exd5 {[%clk 0:02:51]} 7. Bg5 {[%clk 0:02:57]}  O-O {[%clk 0:02:49]} 8. Rc1 {[%clk 0:02:55]}  h6 {[%clk 0:02:44]} 9. Bxf6 {[%clk 0:02:54]}  Qxf6 {[%clk 0:02:42]} 10. e3 {[%clk 0:02:53]}  Bd7 {[%clk 0:02:21]} 11. Bb5 {[%clk 0:02:40]}  a6 {[%clk 0:02:10]} 12. Bxc6 {[%clk 0:02:39]}  Bxc3+ {[%clk 0:02:09]} 13. Rxc3 {[%clk 0:02:38]}  Bxc6 {[%clk 0:02:07]} 14. Qc2 {[%clk 0:02:35]}  Rae8 {[%clk 0:01:53]} 15. O-O {[%clk 0:02:25]}  g5 {[%clk 0:01:52]} 16. Ne5 {[%clk 0:02:24]}  Rxe5 {[%clk 0:01:52]} 17. dxe5 {[%clk 0:02:24]}  Qxe5 {[%clk 0:01:52]} 18. Rd1 {[%clk 0:02:11]}  Kg7 {[%clk 0:01:48]} 19. Qd2 {[%clk 0:02:03]}  f6 {[%clk 0:01:44]} 20. Qd4 {[%clk 0:02:03]}  Qe6 {[%clk 0:01:43]} 21. Rdc1 {[%clk 0:01:56]}  Rd8 {[%clk 0:01:39]} 22. b4 {[%clk 0:01:56]}  h5 {[%clk 0:01:21]} 23. a4 {[%clk 0:01:52]}  Rd7 {[%clk 0:01:05]} 24. b5 {[%clk 0:01:48]}  axb5 {[%clk 0:01:04]} 25. axb5 {[%clk 0:01:47]}  Bxb5 {[%clk 0:01:04]} 26. Rxc7 {[%clk 0:01:46]}  Bc6 {[%clk 0:01:03]} 27. Rxd7+ {[%clk 0:01:41]}  Qxd7 {[%clk 0:01:03]} 28. Qc5 {[%clk 0:01:39]}  h4 {[%clk 0:01:01]} 29. Rd1 {[%clk 0:01:39]}  h3 {[%clk 0:00:59]} 30. f3 {[%clk 0:01:16]}  hxg2 {[%clk 0:00:57]} 31. Qd4 {[%clk 0:01:08]}  Qh3 {[%clk 0:00:52]} 32. Kf2 {[%clk 0:01:09]}  Qxh2 {[%clk 0:00:48]} 33. Rg1 {[%clk 0:01:09]}  Qe5 {[%clk 0:00:44]} 34. Rxg2 {[%clk 0:01:04]}  Qxd4 {[%clk 0:00:40]} 35. exd4 {[%clk 0:01:04]}  Kg6 {[%clk 0:00:40]} 36. f4 {[%clk 0:01:04]}  Kf5 {[%clk 0:00:39]} 37. fxg5 {[%clk 0:01:05]}  fxg5 {[%clk 0:00:39]} 38. Ke3 {[%clk 0:01:05]}  g4 {[%clk 0:00:38]} 39. Rf2+ {[%clk 0:01:02]}  Kg5 {[%clk 0:00:38]} 40. Rg2 {[%clk 0:00:58]}  Bb5 {[%clk 0:00:33]} 41. Rg1 {[%clk 0:00:55]}  Bc4 {[%clk 0:00:33]} 42. Rg2 {[%clk 0:00:51]}  b5 {[%clk 0:00:33]} 43. Rf2 {[%clk 0:00:51]}  b4 {[%clk 0:00:32]} 44. Rf8 {[%clk 0:00:49]}  b3 {[%clk 0:00:32]} 45. Rb8 {[%clk 0:00:49]}  Kf5 {[%clk 0:00:25]} 46. Rf8+ {[%clk 0:00:48]}  Kg5 {[%clk 0:00:22]} 47. Rb8 {[%clk 0:00:47]}  Kh4 {[%clk 0:00:22]} 48. Kf4 {[%clk 0:00:46]}  Kh3 {[%clk 0:00:20]} 49. Rh8+ {[%clk 0:00:46]}  Kg2 {[%clk 0:00:20]} 50. Kxg4 {[%clk 0:00:45]}  Kf2 {[%clk 0:00:19]} 51. Kf4 {[%clk 0:00:44]}  Ke2 {[%clk 0:00:19]} 52. Rh2+ {[%clk 0:00:40]}  Kd3 {[%clk 0:00:19]} 53. Ke5 {[%clk 0:00:40]}  Kc3 {[%clk 0:00:19]} 54. Rh3+ {[%clk 0:00:40]}  Kb2 {[%clk 0:00:16]} 55. Rh2+ {[%clk 0:00:39]}  Ka1 {[%clk 0:00:16]} 56. Rh1+ {[%clk 0:00:37]}  Ka2 {[%clk 0:00:16]} 57. Rh2+ {[%clk 0:00:38]}  b2 {[%clk 0:00:16]} 58. Kd6 {[%clk 0:00:38]}  Ka1 {[%clk 0:00:15]} 59. Rxb2 {[%clk 0:00:37]}  Kxb2 {[%clk 0:00:16]} 60. Kc5 {[%clk 0:00:35]}  Kc3 {[%clk 0:00:16]} 0-1


[Site "https://www.chess.com"]

[Event "Titled Tuesday Blitz October 31 Late 2023"]
[White "hristos03"]
[Black "Fernandez, Maria Florencia"]
[BlackFideId "116459"]
[WhiteElo "2431"]
[BlackElo "2331"]
[Result "0-1"]
[Round "10"]
[TimeControl "180+1"]
[Date "2023.10.31"]
[WhiteClock "0:00:00"]
[BlackClock "0:00:53"]
[Board "80"]

1. e4 {[%clk 0:02:59]}  c5 {[%clk 0:02:57]} 2. Nf3 {[%clk 0:02:59]}  d6 {[%clk 0:02:57]} 3. d4 {[%clk 0:02:58]}  cxd4 {[%clk 0:02:58]} 4. Nxd4 {[%clk 0:02:58]}  Nf6 {[%clk 0:02:58]} 5. Nc3 {[%clk 0:02:56]}  g6 {[%clk 0:02:58]} 6. Be3 {[%clk 0:02:52]}  Bg7 {[%clk 0:02:57]} 7. f3 {[%clk 0:02:50]}  O-O {[%clk 0:02:57]} 8. Qd2 {[%clk 0:02:49]}  Nc6 {[%clk 0:02:56]} 9. O-O-O {[%clk 0:02:44]}  d5 {[%clk 0:02:55]} 10. exd5 {[%clk 0:02:41]}  Nxd5 {[%clk 0:02:55]} 11. Nxc6 {[%clk 0:02:41]}  bxc6 {[%clk 0:02:56]} 12. Bd4 {[%clk 0:02:42]}  e5 {[%clk 0:02:55]} 13. Bc5 {[%clk 0:02:40]}  Be6 {[%clk 0:02:55]} 14. Bc4 {[%clk 0:02:21]}  Re8 {[%clk 0:02:50]} 15. Ne4 {[%clk 0:02:12]}  Qc7 {[%clk 0:02:45]} 16. Kb1 {[%clk 0:01:18]}  Rad8 {[%clk 0:02:42]} 17. Qf2 {[%clk 0:01:18]}  Rd7 {[%clk 0:02:36]} 18. h4 {[%clk 0:01:13]}  Red8 {[%clk 0:02:36]} 19. Ka1 {[%clk 0:00:31]}  Nf4 {[%clk 0:02:22]} 20. Rxd7 {[%clk 0:00:29]}  Qxd7 {[%clk 0:02:21]} 21. Be2 {[%clk 0:00:19]}  Bf5 {[%clk 0:01:40]} 22. g3 {[%clk 0:00:11]}  Bxe4 {[%clk 0:01:35]} 23. fxe4 {[%clk 0:00:10]}  Ne6 {[%clk 0:01:26]} 24. Be3 {[%clk 0:00:07]}  Nd4 {[%clk 0:01:10]} 25. Bxd4 {[%clk 0:00:05]}  exd4 {[%clk 0:01:11]} 26. Bd3 {[%clk 0:00:05]}  c5 {[%clk 0:01:11]} 27. Qe2 {[%clk 0:00:05]}  Qd6 {[%clk 0:01:08]} 28. Rg1 {[%clk 0:00:02]}  Qe5 {[%clk 0:01:08]} 29. Qf3 {[%clk 0:00:02]}  c4 {[%clk 0:01:06]} 30. Bxc4 {[%clk 0:00:02]}  d3 {[%clk 0:01:07]} 31. Qxf7+ {[%clk 0:00:02]}  Kh8 {[%clk 0:01:07]} 32. c3 {[%clk 0:00:02]}  d2 {[%clk 0:01:07]} 33. Rd1 {[%clk 0:00:02]}  Qxg3 {[%clk 0:01:04]} 34. Bb3 {[%clk 0:00:02]}  Qxh4 {[%clk 0:01:01]} 35. Qf3 {[%clk 0:00:00]}  Qe1 {[%clk 0:00:53]} 0-1


[Site "https://www.chess.com"]